Workbook

Sheet tableau 28 CB BI 2019
A1: Le budget 2019 en comptabilité budgétaire
A3: DEPENSES
B4: CF 2018 | D4: BI 2019 voté le 29 novembre 2018 | F4: BR 2019 voté le 28 novembre 2019 | H4: CF 2019
B5: Montants | D5: Montants | F5: Montants | H5: Montants | J5: taux de réalisation
B6: AE | C6: CP | D6: AE | E6: CP | F6: AE | G6: CP | H6: AE | I6: CP | J6: AE | K6: CP
A8: Personnel | B8: 140250087.8 | C8: 140250087.8 | D8: 142040311.4 | E8: 142040311.4 | F8: 142517311.4 | G8: 142517311.4 | H8: 140922264.9 | I8: 140922264.9 | J8: =+H8/F8 -> 0.9888080507 | K8: =+I8/G8 -> 0.9888080507
A9: Fonctionnement | B9: 53801614.44 | C9: 50641611.63 | D9: 49632996.87 | E9: 50528220.87 | F9: 48894280.11 | G9: 49768101.73 | H9: 48545727.86 | I9: 49383935.82 | J9: =+H9/F9 -> 0.9928713084 | K9: 0.9922808809
A10: Investissement | B10: 35643844.67 | C10: 32534781.44 | D10: 52211884.63 | E10: 51985598.58 | F10: 37039562.53 | G10: 35828364.49 | H10: 35853044.56 | I10: 34420845.73 | J10: 0.9679661991 | K10: 0.9607149592
A12: TOTAL DES DEPENSES - AE (A) CP (B) | B12: =SUM(B8:B11) -> 229695546.9 | C12: =SUM(C8:C11) -> 223426480.9 | D12: 243885192.9 | E12: 244554130.9 | F12: 228451154.1 | G12: 228113777.7 | H12: 225321037.3 | I12: 224727046.5 | J12: =+H12/F12 -> 0.9862985296 | K12: =+I12/G12 -> 0.9851533247
A14: RECETTES
B15: =+B4 -> CF 2018 | D15: =D4 -> BI 2019 voté le 29 novembre 2018 | F15: =F4 -> BR 2019 voté le 28 novembre 2019 | H15: =H4 -> CF 2019
C16: Montants | E16: Montants | G16: Montants | I16: Montants | K16: Taux de réalisation
A17: Recettes globalisées | C17: =SUM(C18:C20) -> 213551261.9 | E17: =SUM(E18:E20) -> 215746335 | G17: =SUM(G18:G20) -> 213130049.1 | I17: =SUM(I18:I20) -> 213208703.4 | K17: =+I17/G17 -> 1.000369044
A18: Subvention pour charges de service public | C18: 178712862 | E18: 181363385 | G18: 181840385 | I18: 181840385 | K18: =+I18/G18 -> 1
A19: Autres financements de l'Etat | C19: 22741740 | E19: 22741740 | G19: 20049240 | I19: 20899240 | K19: 1.042395622
A20: Recettes propres | C20: 12096659.86 | E20: 11641210 | G20: 11240424.1 | I20: 10469078.44 | K20: 0.9313775305
A22: Recettes fléchées* | C22: =SUM(C23:C25) -> 12951423.18 | E22: =SUM(E23:E25) -> 16913766.26 | G22: =SUM(G23:G25) -> 7592540.4 | I22: =SUM(I23:I25) -> 7754162.49 | K22: =+I22/G22 -> 1.021286958
A23: Financements de l'Etat fléchés | C23: 599711.63 | E23: 791700 | G23: 791700 | I23: 656591.96 | K23: 0.8293443981
A24: Autres financements publics fléchés | C24: 5949147.85 | E24: 1329641.26 | G24: 1083482.4 | I24: 841695.38 | K24: 0.776842688
A25: Recettes propres fléchées | C25: 6402563.7 | E25: 14792425 | G25: 5717358 | I25: 6255875.15 | K25: 1.09418986
A27: TOTAL DES RECETTES (C) | C27: =C17+C22 -> 226502685 | E27: =E17+E22 -> 232660101.3 | G27: =G17+G22 -> 220722589.5 | I27: =I17+I22 -> 220962865.9 | K27: =+I27/G27 -> 1.00108859
A29: SOLDE BUDGETAIRE | B29: BI 2018 après BR2 | D29: =D15 -> BI 2019 voté le 29 novembre 2018 | F29: =F4 -> BR 2019 voté le 28 novembre 2019 | H29: =H4 -> CF 2019
A30: Abondement ou prélèvement sur la trésorerie | C30: =+C27-C12 -> 3076204.17 | E30: =+E27-E12 -> -11894029.63 | G30: =+G27-G12 -> -7391188.156 | I30: =+I27-I12 -> -3764180.54

Sheet tableau 29 CG BI 2019
A1: Le budget 2019 en comptabilité générale
B4: 2019
A5: CHARGES D'EXPLOITATION | B5: =SUM(B6:B8) -> 247241532.3
A6: Personnel | B6: 142040311.4
A7: Autres charges de fonctionnement | B7: 49301220.87
A8: Charges calculées | B8: 55900000
A10: RECETTES DE FONCTIONNEMENT | B10: =SUM(B11:B13) -> 247912666.6
A11: Subvention pour charge de service public | B11: 181363385
A12: Autres ressources | B12: 13399281.58
A13: Recettes calculées | B13: 53150000
A15: Résultat patrimonial | B15: =+B10-B5 -> 671134.274
A16: CAF | B16: =+B11+B12-B6-B7 -> 3421134.274
A18: DEPENSES D'INVESTISSEMENT | B18: 51985598.58
A20: RECETTES D'INVESTISSEMENT | B20: =SUM(B21:B22) -> 37897434.68
A21: Dotation en fonds propres | B21: 23216740
A22: Autres ressources | B22: 14680694.68
A24: PRELEVEMENT SUR LE FONDS DE ROULEMENT | B24: =B20-B18+B16 -> -10667029.63

Sheet tableau 30 destinations BI 2019
A1: Le budget 2019 par destinations (rang 1 & 2) - en AE & CP
A3: Dest 1 | B3: Destination de niveau 2 | C3: Personnel | E3: Fonctionnement | H3: Investissement | K3: TOTAL
C4: AE=CP | E4: AE | F4: CP | H4: AE | I4: CP | K4: AE | L4: CP
A5: Patrimoine immobilier | B5: Projet Richelieu | C5: 991803.092 | E5: 195730.1 | F5: 344295.09 | H5: 204308.08 | I5: 416543.33 | K5: =+C5+E5+H5 -> 1391841.272 | L5: =+C5+F5+I5 -> 1752641.512 | O5: CP | T5: CP
B6: Richelieu et annexes | C6: 167899.266 | E6: 291920.99 | F6: 378395.76 | H6: 149580.03 | I6: 50421.68 | K6: =+C6+E6+H6 -> 609400.286 | L6: =+C6+F6+I6 -> 596716.706 | O6: Personnel | P6: =+C57 -> 140922264.9 | T6: Patrimoine immobilier | U6: =+L14 -> 16757845.02
B7: François Mitterrand | C7: 558977.2904 | E7: 78040.74 | F7: 96319.64 | H7: 5820902.15 | I7: 4283000.14 | K7: 6457920.18 | L7: 4938297.07 | O7: Fonctionnement | P7: =+F57 -> 49383935.82 | T7: Patrimoine collections | U7: =+L24 -> 85194321.4
B8: Bussy | C8: 51277.3893 | E8: 0 | F8: 0 | H8: 0 | I8: 86458.49 | K8: 51277.3893 | L8: 137735.8793 | O8: Investissement | P8: =+I57 -> 34420845.73 | T8: Diffusion valorisation | U8: =+L41 -> 58301919.29
B9: Arsenal | C9: 47762.85814 | E9: 0 | F9: 0 | H9: 193083.45 | I9: 185043.68 | K9: 240846.3081 | L9: 232806.5381 | T9: Fonctions support | U9: =+L55 -> 64472960.76
B10: Bibliothèque musée de l'Opéra | C10: 30685.71325 | E10: 0 | F10: 0 | H10: 0 | I10: 0 | K10: 30685.71325 | L10: 30685.71325
B11: Sablé | C11: 12256.90246 | E11: 47436.51 | F11: 30592.3 | H11: 827.18 | I11: 118090.2 | K11: 60520.59246 | L11: 160939.4025
B12: Boulevard St Michel | C12: 7069.022886 | E12: 13079.86 | F12: 13403.4 | H12: 28340.82 | I12: 76103.95 | K12: 48489.70289 | L12: 96576.37289
B13: Multisites | C13: 77451.55545 | E13: 6105868.11 | F13: 6424379.17 | H13: 2765510.74 | I13: 2309615.1 | K13: 8948830.405 | L13: 8811445.825
A14: Total Patrimoine immobilier | C14: =SUM(C5:C13) -> 1945183.09 | E14: =SUM(E5:E13) -> 6732076.31 | F14: 7287385.36 | H14: 9162552.45 | I14: 7525276.57 | K14: 17839811.85 | L14: 16757845.02
A15: Patrimoine collections | B15: Dépôt légal | C15: 5431521.098 | E15: 301983.42 | F15: 286183.42 | H15: 1364644.74 | I15: 1182469.82 | K15: =+C15+E15+H15 -> 7098149.258 | L15: =+C15+F15+I15 -> 6900174.338
B16: Pôles associés | C16: 1014953.243 | E16: 1245425.16 | F16: 1211429.41 | H16: 116961.65 | I16: 80315.6 | K16: 2377340.053 | L16: 2306698.253
B17: Acquisitions | C17: 8721070.318 | E17: 2665248.85 | F17: 2675393.91 | H17: 6546886.23 | I17: 6259136.18 | K17: 17933205.4 | L17: 17655600.41
B18: Constitution des collections numériques | C18: 5781002.161 | E18: 447524.67 | F18: 522040.01 | H18: 2816956.33 | I18: 2580085.83 | K18: 9045483.161 | L18: 8883128.001
B19: Restauration/conservation | C19: 15633081.18 | E19: 2039362.63 | F19: 2617720.43 | H19: 659407.75 | I19: 724172.48 | K19: 18331851.56 | L19: 18974974.09
B20: Sûreté des collections | C20: 2468208.882 | E20: 63865 | F20: 63865 | H20: 0 | I20: 0 | K20: 2532073.882 | L20: 2532073.882
B21: Stockage des collections physiques | C21: 2073204.75 | E21: 368533.59 | F21: 562733.28 | H21: 642485.53 | I21: 372827.69 | K21: 3084223.87 | L21: 3008765.72
B22: Catalogage hors informatique | C22: 19849430.65 | E22: 21246.5 | F22: 21246.5 | H22: 202275.96 | I22: 174467.11 | K22: 20072953.11 | L22: 20045144.26
B23: SIBIB/SINUM pour conservation | C23: 1998908.081 | E23: 320959.33 | F23: 238606.27 | H23: 2307169.68 | I23: 2650248.11 | K23: 4627037.091 | L23: 4887762.461
A24: Total Patrimoine collections | C24: =SUM(C15:C23) -> 62971380.35 | E24: =SUM(E15:E23) -> 7474149.15 | F24: 8199218.23 | H24: 14656787.87 | I24: 14023722.82 | K24: 85102317.37 | L24: 85194321.4
A25: Diffusion et valorisation | B25: Accueil | C25: 3054808.909 | E25: 348258.27 | F25: 295117.79 | H25: 90910.94 | I25: 113657.58 | K25: =+C25+E25+H25 -> 3493978.119 | L25: =+C25+F25+I25 -> 3463584.279
B26: Mise à disposition des collections physiques | C26: 10261942.48 | E26: 1218881.8 | F26: 1238990.09 | H26: 409333.56 | I26: 578555.78 | K26: 11890157.84 | L26: 12079488.35
B27: Exception handicap | C27: 267415.0618 | E27: 0 | F27: 0 | H27: 134525.75 | I27: 107536.55 | K27: 401940.8118 | L27: 374951.6118
B28: Education artistique et cultutelle | E28: 1829 | K28: =+C28+E28+H28 -> 1829 | L28: =+C28+F28+I28 -> 0
B29: Services à distance | C29: 5614585.414 | E29: 421518.75 | F29: 384855.26 | H29: 2083977.12 | I29: 2179343.47 | K29: 8120081.284 | L29: 8178784.144
B30: Reproduction | C30: 4452984.911 | E30: 85868.28 | F30: 109222.48 | H30: 166662.88 | I30: 166662.88 | K30: 4705516.071 | L30: 4728870.271
B31: Éditions et produits dérivés | C31: 1951766.61 | E31: 853015.31 | F31: 825486.37 | H31: 766596.04 | I31: 427815.6 | K31: 3571377.96 | L31: 3205068.58
B32: Expositions | C32: 3223989.927 | E32: 1784747.68 | F32: 1647396.94 | H32: 381106.58 | I32: 256314.64 | K32: 5389844.187 | L32: 5127701.507
B33: Manifestations | C33: 1929047.034 | E33: 330548.85 | F33: 298829.26 | H33: 73262.06 | I33: 73262.06 | K33: 2332857.944 | L33: 2301138.354
B34: Actions pédagogiques et éducatives | C34: 1036068.402 | E34: 22359.98 | F34: 38959.81 | H34: 0 | I34: 0 | K34: 1058428.382 | L34: 1075028.212
B35: Formation professionnelle | C35: 667565.1144 | E35: 11450.22 | F35: 11797.92 | H35: 0 | I35: 0 | K35: 679015.3344 | L35: 679363.0344
B36: Recherche scientifique | C36: 2083646.444 | E36: 167596.43 | F36: 148634.34 | H36: 12976.58 | I36: 11277.4 | K36: 2264219.454 | L36: 2243558.184
B37: Activités internationales | C37: 986874.9561 | E37: 126137.01 | F37: 79262.23 | H37: 34709 | I37: 0 | K37: 1147720.966 | L37: 1066137.186
B38: SIBIB/SINUM pour communication | C38: 2218669.177 | E38: 205842.07 | F38: 175121.52 | H38: 1642744.99 | I38: 1723086.03 | K38: 4067256.237 | L38: 4116876.727
B39: Service public sur place | C39: 8863368.847 | E39: 0 | F39: 0 | H39: 0 | I39: 0 | K39: 8863368.847 | L39: 8863368.847
B40: Participation à la filiale | E40: 0 | F40: 0 | H40: 798000 | I40: 798000 | K40: 798000 | L40: 798000
A41: Total Diffusion et valorisation | C41: =SUM(C25:C40) -> 46612733.29 | E41: =SUM(E25:E40) -> 5578053.65 | F41: =SUM(F25:F40) -> 5253674.01 | H41: =SUM(H25:H40) -> 6594805.5 | I41: =SUM(I25:I40) -> 6435511.99 | K41: =SUM(K25:K40) -> 58785592.44 | L41: =SUM(L25:L40) -> 58301919.29
A42: Fonctions support | B42: Sécurité et sûreté | C42: 2272165.377 | E42: 8747823.54 | F42: 8762608.67 | H42: 5045.58 | I42: 89952.8 | K42: =+C42+E42+H42 -> 11025034.5 | L42: =+C42+F42+I42 -> 11124726.85
B43: Logistique / exploitation | C43: 4879891.555 | E43: 12315445.27 | F43: 12280738.4 | H43: 84760.19 | I43: 424567.3 | K43: 17280097.02 | L43: 17585197.26
B44: Locations immobilières et charges | C44: 340727.7023 | E44: 154238.57 | F44: 32406.81 | H44: 0 | I44: 0 | K44: 494966.2723 | L44: 373134.5123
B45: Pilotage stratégie | C45: 3930174.924 | E45: 324450.34 | F45: 349209.85 | H45: 355584.76 | I45: 260483.63 | K45: 4610210.024 | L45: 4539868.404
B46: Frais de mission | C46: 106645.7408 | E46: 169654.45 | F46: 169087.28 | H46: 0 | I46: 0 | K46: 276300.1908 | L46: 275733.0208
B47: Communication | C47: 1675646.14 | E47: 828576.64 | F47: 873552.63 | H47: 278925.97 | I47: 181513.37 | K47: 2783148.75 | L47: 2730712.14
B48: Dépenses relatives au personnel | C48: 5284584.935 | E48: 964718.44 | F48: 880352.65 | H48: 1021112.18 | I48: 961724.71 | K48: 7270415.555 | L48: 7126662.295
B49: Informatique transverse | E49: 4323179.42 | F49: 4487181.28 | H49: 1787372.86 | I49: 1467034 | K49: 6110552.28 | L49: 5954215.28
B50: Informatique bureautique | C50: 1843556.413 | E50: 95727.83 | F50: 18904.42 | H50: 1487154.83 | I50: 2773005.86 | K50: 3426439.073 | L50: 4635466.693
B51: Documentation | C51: 75494.48707 | E51: 203207.54 | F51: 199402.57 | H51: 0 | I51: 0 | K51: 278702.0271 | L51: 274897.0571
B52: Charges financières | E52: 208681.27 | F52: 203135.63 | H52: 1050 | I52: 1050 | K52: 209731.27 | L52: 204185.63
B53: Gestion administrative | C53: 8984080.914 | E53: 331330.11 | F53: 292662.6 | H53: 417892.37 | I53: 277002.68 | K53: 9733303.394 | L53: 9553746.194
B54: Personnel | E54: 94415.43 | F54: 94415.43 | H54: 0 | I54: 0 | K54: 94415.43 | L54: 94415.43
A55: Total Fonctions support | C55: =SUM(C42:C54) -> 29392968.19 | E55: =SUM(E42:E54) -> 28761448.85 | F55: =SUM(F42:F54) -> 28643658.22 | H55: 5438898.74 | I55: 6436334.35 | K55: 63593315.78 | L55: 64472960.76
A57: Total charges décaissables | C57: =C14+C24+C41+C55 -> 140922264.9 | E57: =E14+E24+E41+E55 -> 48545727.96 | F57: =F14+F24+F41+F55 -> 49383935.82 | H57: =H14+H24+H41+H55 -> 35853044.56 | I57: =I14+I24+I41+I55 -> 34420845.73 | K57: =K14+K24+K41+K55 -> 225321037.4 | L57: =L14+L24+L41+L55 -> 224727046.5

Sheet tableau 31 exécution BI 2019
A1: L’exécution du budget 2019
A3: Taux de consommation des crédits | B3: 2016 | D3: 2017 | F3: 2018 | H3: 2019
B4: AE | C4: CP | D4: AE | E4: CP | F4: AE | G4: CP | H4: AE | I4: CP
A5: Personnel | B5: =134716539/136052591 -> 0.9901798857 | D5: =138774891/139273730 -> 0.9964182836 | F5: =140250088/140508214 -> 0.9981629117 | H5: 0.9888080507
A6: Fonctionnement | B6: =50303118/52631436 -> 0.9557618378 | C6: =47752993/50128917 -> 0.9526037237 | D6: =49755301/51798368 -> 0.9605573095 | E6: =49736557/52180619 -> 0.9531614985 | F6: =53801614/55587261 -> 0.9678766867 | G6: =50641612/54373144 -> 0.9313717816 | H6: 0.9928713084 | I6: 0.9922808809
A7: Total compte de résultat | B7: =185019657/188684027 -> 0.9805793312 | C7: =182469532/186181508 -> 0.9800625957 | D7: =188530192/191072098 -> 0.9866966133 | E7: =188511447/191454349 -> 0.9846287012 | F7: =194051702/196095475 -> 0.9895776636 | G7: =190891700/194881358 -> 0.9795277597 | H7: 0.9898459714 | I7: 0.9897069029
A8: Investissement | B8: =38144975/38977667 -> 0.9786366896 | C8: =36050664/45362599 -> 0.7947221895 | D8: =33460463/35045345 -> 0.9547762477 | E8: =34145838/38017509 -> 0.8981608448 | F8: =35643845/36754489 -> 0.9697820857 | G8: =32534781/36688605 -> 0.8867816315 | H8: 0.9679661991 | I8: 0.9607149592

Sheet tableau 32 CG CF2019
A1: Le compte financier 2019 en comptabilité générale
B3: 2016 | C3: 2017 | D3: 2018 | E3: 2019
A4: CHARGES D'EXPLOITATION | B4: =SUM(B5:B7) -> 231376454 | C4: =SUM(C5:C7) -> 246224263 | D4: =SUM(D5:D7) -> 242108673 | E4: 240663194.7
A5: Personnel | B5: 134317363 | C5: 137768349.1 | D5: 139386825 | E5: 141067602.5
A6: Autres charges de fonctionnement | B6: 47383860 | C6: 52629602.93 | D6: 49616553 | E6: 48458249.38
A7: Charges calculées | B7: 49675231 | C7: 55826311 | D7: 53105295 | E7: 51137342.81
A9: RECETTES DE FONCTIONNEMENT | B9: =SUM(B10:B12) -> 234266444.3 | C9: =SUM(C10:C12) -> 247924281.4 | D9: 242117758.1 | E9: 244733267.4
A10: Subvention pour charge de service public | B10: 176446229 | C10: 183582589 | D10: 178712862 | E10: 181840385
A11: Autres ressources | B11: 11108085.3 | C11: 10529051.36 | D11: 13313559.05 | E11: 11894349.44
A12: Recettes calculées | B12: 46712130 | C12: 53812641 | D12: 50091337 | E12: 50998533
A14: Résultat patrimonial | B14: =+B9-B4 -> 2889990.3 | C14: 1700018.36 | D14: =+D9-D4 -> 9085.05 | E14: =+E9-E4 -> 4070072.71
A15: CAF | B15: =+B10+B11-B5-B6 -> 5853091.3 | C15: 3713688.36 | D15: =+D10+D11-D5-D6 -> 3023043.05 | E15: =+E10+E11-E5-E6 -> 4208882.52
A17: DEPENSES D'INVESTISSEMENT | B17: 39811138 | C17: 37253844 | D17: 32642010 | E17: 39879308.34
A19: RECETTES D'INVESTISSEMENT | B19: 33990752 | C19: 35468642 | D19: 33728072 | E19: 32748099.96
A20: Dotation en fonds propres | B20: 21560000 | C20: 24462933 | D20: 23216740 | E20: 21374240
A21: Autres ressources | B21: =+B19-B20 -> 12430752 | C21: =+C19-C20 -> 11005709 | D21: 10511332 | E21: 7783840
A23: PRELEVEMENT SUR LE FONDS DE ROULEMENT | B23: =B19-B17+B15 -> 32705.3 | C23: =C19-C17+C15 -> 1928486.36 | D23: =D19-D17+D15 -> 4109105.05 | E23: =E19-E17+E15 -> -2922325.86
B49: CF 2016 | C49: CF 2017 | D49: CF2018 | E49: CF2019
A50: Résultat | B50: 2889990.3 | C50: 1700018.36 | D50: 9085.05 | E50: 4070072.71
A51: CAF | B51: 5853091.3 | C51: 3713688.36 | D51: 3023043.05 | E51: 4208882.52

Sheet tableau 33 investissement
A1: Le compte financier 2019 : principaux postes en investissement
A3: Postes d'investissement en CP | B3: CF 2016 | C3: CF 2017 | D3: CF 2018 | E3: CF 2019
A4: Travaux | B4: 8121695.46 | C4: 7505524.16 | D4: 10617413.53 | E4: 8496352.21
A5: Informatique | B5: 11052918.52 | C5: 8012280.21 | D5: 7963431.52 | E5: 13371738.68
A6: Acquisitions | B6: 9179016.89 | C6: 7171136.07 | D6: 7480792.91 | E6: 6259136.18
A7: Numérisation des collections | B7: 5885884.78 | C7: 6939769.3 | D7: 3202189.55 | E7: 2437310.3
A8: Autres | B8: 1811148.35 | C8: 4517128.52 | D8: 3270953.93 | E8: 3856308.36
B9: =SUM(B4:B8) -> 36050664 | C9: =SUM(C4:C8) -> 34145838.26 | D9: =SUM(D4:D8) -> 32534781.44 | E9: =SUM(E4:E8) -> 34420845.73

Sheet tableau 34 fonctionnement
A1: Le compte financier 2019 : principaux postes en fonctionnement
A4: Postes de fonctionnement en CP | B4: CF 2016 | C4: CF 2017 | D4: CF 2018 | E4: CF 2019
A5: Exploitation technique / Sûreté Sécurité | B5: 26592247.99 | C5: 29580548.06 | D5: 28546080.96 | E5: 28996399.71
A6: Informatique | B6: 6376458.04 | C6: 5366608.67 | D6: 5636742.21 | E6: 6295639.09
A7: Collections (Acquisitions, conservation) | B7: 5736506.41 | C7: 5373472.04 | D7: 4904227.57 | E7: 6137818.93
A8: Difusion culturelle | B8: 2986578.5 | C8: 2832869.95 | D8: 2663840.85 | E8: 2741647.91
A9: Communication | B9: 993012.33 | C9: 1385653.72 | D9: 1327217.7 | E9: 1357993.11
A10: Pôles associés | B10: 1670436.54 | C10: 1977141.45 | D10: 1856334.52 | E10: 1211429.41
A11: Action internationale, études et recherche | B11: 769147.78 | C11: 823645.65 | D11: 1025060.49 | E11: 589491.25
A12: Charges financières et administratives | B12: 818225.08 | C12: 673233.73 | D12: 748309.23 | E12: 528205.04
A13: Dépenses relatives au personnel | B13: 1641538.61 | C13: 1354735.13 | D13: 1590761.43 | E13: 1339766.14
A14: Autres | B14: 168841.39 | C14: 368648.14 | D14: 319448.39 | E14: 185545.23
B15: =SUM(B5:B14) -> 47752992.67 | C15: =SUM(C5:C14) -> 49736556.54 | D15: =SUM(D5:D14) -> 48618023.35 | E15: =SUM(E5:E14) -> 49383935.82

Sheet tableau 35 recettes
B1: Le compte financier 2019 : recettes
B3: Détail des recettes par origines | J3: Subventions Etat | K3: =+F7 -> 203240487.8
J4: Autres ressources | K4: =+F18-K3 -> 17722378.18
B5: Recettes en GBCP | D5: CF 2017 | E5: CF 2018 | F5: CF 2019
B7: Subventions d'Etat | D7: 205233422 | E7: 202056902 | F7: 203240487.8 | N7: CF 2017 | O7: CF 2018 | P7: CF 20019
B8: Autres subventions | D8: 6829378.51 | E8: 6126118.47 | F8: 1259715.88 | J8: Autres subventions | K8: =+F8 -> 1259715.88 | M8: Subventions Etat | N8: =+D7/D18 -> 0.8970011523 | O8: =+E7/E18 -> 0.8920728775 | P8: =+F7/F18 -> 0.9197947669
B9: Mécénat et parrainage | D9: 2010044.66 | E9: 2688580.75 | F9: 2983445.51 | J9: Mécénat et parrainage | K9: 2983445.51 | M9: Autres ressources | N9: =1-N8 -> 0.1029988477 | O9: =1-O8 -> 0.1079271225 | P9: =1-P8 -> 0.08020523315
B10: Billetterie (dont accès au salles de lecture et expositions) | D10: 1569950.7 | E10: 1712806.75 | F10: 2138802.92 | J10: Billetterie | K10: 2138802.92
B11: Coproduction, tournées et itinérances de spéctacles et d'exposition | D11: 55868.07 | E11: 55790.55 | F11: 47611 | J11: Itinérance expositions | K11: 47611
B12: Activités commerciales (dont éditions et mise à dispo. infrastructures informatiques) | D12: 769721.04 | E12: 738886.75 | F12: 1810528.64 | J12: Activités commerciales | K12: 1810528.64
B13: Valorisation du domaine | D13: 4922067.23 | E13: 6604052.91 | F13: 3794485.36 | J13: Valorisation du domaine | K13: 3794485.36
B14: Valorisation des collections (dont reproduction et partenariats de numérisation) | D14: 2004793.7 | E14: 1814072.31 | F14: 1320756.68 | J14: Valorisation des collections | K14: 1320756.68
B15: Activités d'enseignement | D15: 121533.85 | E15: 62806.56 | F15: 88829.5 | J15: Activités d'enseignement | K15: 88829.5
B16: Recettes diverses | D16: =5281858.88+869 -> 5282727.88 | E16: 4642667.99 | F16: 4278202.69 | J16: Recettes diverses | K16: 4278202.69
B18: Total recettes | D18: =SUM(D7:D16) -> 228799507.6 | E18: =SUM(E7:E16) -> 226502685 | F18: =SUM(F7:F16) -> 220962865.9

Sheet tableau 36 dépenses dirigeants
A1: Le suivi des dépenses dirigeants
B3: 2017 | C3: 2018 | D3: 2019
A4: 1. Frais de réception et de représentation | B4: 10 692 | C4: 5 941 | D4: 3 314
A5: 2. Déplacements (missions et taxis) | B5: 20 020 | C5: 32 664 | D5: 18 129
A6: 3. Autre | B6: 3 166 | C6: 31 571 | D6: 213
A7: 3.1 Formations | B7: 3 166 | C7: 2 047 | D7: 213
A8: 3.2 Véhicule de direction | C8: 30524
